Workbook

Sheet Sheet1
B1: Delta-Epsilon Definition of Limits
B3: This graphing utility lets you investigate
C4: the delta-epsilon definition
C5: of the limit of a function
D6: y = f(x)
B7: as x approaches a point x = x0.
A10: Enter the function in terms of x: f(x) = | F10: x^2+2
A13: Now enter the "display" interval for x:
C14: xMin = | D14: 0
C15: xMax = | D15: 2.2
A17: Next enter the limit point x0 = | E17: 1
B18: =IF(OR(x0>=xMax,x0<=xMin),"Either use a point inside the interval or expand the interval","") -> 
B20: and the presumed limiting value L = | F20: 3 | M20: The graph of the function y = | P20: =F10 -> x^2+2
B23: What is the value for epsilon e = | F23: 0.8 | M23: The limit as x → x0 exists and is equal to L
N24: if, for any e > 0 (the vertical height above and below the limiting point)
N25: there exists a d > 0 (a horizontal distance either side of x0)
A26: Click each item below for suggestions and investigations | N26: such that the curve remains within the horizontal band
B27: Item 1 | O27: from x0 - d to x0 + d
B28: Item 2
B29: Item 3 | M29: Select the horozontal distance d = ± | Q29: =dd -> 0.19 | R29: from x0
B30: Item 4
O31: 19 | P31: =D14+O31*(D15-D14)/100 -> 0.418
A34: To access/download all the DIGMath Apps for Calculus
A35: Click this link: | C35: DIGMath for Calculus
A37: Created by: Sheldon P. Gordon
A38: Farmingdale State College
A39: Development of this module was supported by the
A40: NSF's Division of Undergraduate Education
A41: under grants DUE-0310123 and DUE-0442160.

Sheet Sheet2
A1: x | B1: f(x) | C1: slope | F1: xl= | G1: =IF(Sheet1!$P$31<Sheet1!D14+80*Sheet2!G5,Sheet1!D14,Sheet1!P31-80*Sheet2!G5) -> 0 | H1: =LOOKUP(Sheet1!P31,Sheet2!A3:A1002,Sheet2!B3:B1002)+LOOKUP(Sheet1!P31,Sheet2!A3:A1002,Sheet2!C3:C1002)*(G1-Sheet1!P31) -> 1.8207052 | I1: "=yl
F2: xr= | G2: =IF(Sheet1!$P$31>Sheet1!D15-80*Sheet2!G5,Sheet1!D15,Sheet1!P31+80*Sheet2!G5) -> 1.293621891 | H2: =LOOKUP(Sheet1!P31,Sheet2!A3:A1003,Sheet2!B3:B1003)+LOOKUP(Sheet1!P31,Sheet2!A3:A1003,Sheet2!C3:C1003)*(G2-Sheet1!P31) -> 2.910951709 | I2: "=yR
A3: =Sheet1!D14 -> 0.00 | B3: =x^2+2 -> 2 | C3: =(B4-B3)/Sheet2!$G$5 -> 0.01094527363
A4: =A3+Sheet2!G$5 -> 0.01 | B4: 2.000119799 | C4: =(B5-B4)/Sheet2!$G$5 -> 0.0328358209
A5: =A4+Sheet2!G$5 -> 0.02 | B5: 2.000479196 | C5: =(B6-B5)/Sheet2!$G$5 -> 0.05472636816 | F5: delta x = | G5: =(Sheet1!D15-Sheet1!D14)/201 -> 0.01094527363
A6: =A5+Sheet2!G$5 -> 0.03 | B6: 2.001078191 | C6: =(B7-B6)/Sheet2!$G$5 -> 0.07661691542
A7: =A6+Sheet2!G$5 -> 0.04 | B7: 2.001916784 | C7: =(B8-B7)/Sheet2!$G$5 -> 0.09850746269 | F7: x0 = | G7: =x0 -> 1
A8: =A7+Sheet2!G$5 -> 0.05 | B8: 2.002994975 | C8: =(B9-B8)/Sheet2!$G$5 -> 0.12039801 | F8: L = | G8: =L -> 3
A9: =A8+Sheet2!G$5 -> 0.07 | B9: 2.004312765 | C9: =(B10-B9)/Sheet2!$G$5 -> 0.1422885572
A10: =A9+Sheet2!G$5 -> 0.08 | B10: 2.005870152 | C10: =(B11-B10)/Sheet2!$G$5 -> 0.1641791045 | E10: upper line
A11: =A10+Sheet2!G$5 -> 0.09 | B11: 2.007667137 | C11: =(B12-B11)/Sheet2!$G$5 -> 0.1860696517 | F11: xMin = | G11: =xMin -> 0 | H11: =L+E -> 3.8 | I11: "=L+E
A12: =A11+Sheet2!G$5 -> 0.10 | B12: 2.00970372 | C12: =(B13-B12)/Sheet2!$G$5 -> 0.207960199 | F12: xMax - | G12: =xMax -> 2.2 | H12: =L+E -> 3.8
A13: =A12+Sheet2!G$5 -> 0.11 | B13: 2.011979901 | C13: =(B14-B13)/Sheet2!$G$5 -> 0.2298507463 | E13: lower line
A14: =A13+Sheet2!G$5 -> 0.12 | B14: 2.014495681 | C14: =(B15-B14)/Sheet2!$G$5 -> 0.2517412935 | F14: xMin = | G14: =xMin -> 0 | H14: =L-E -> 2.2 | I14: "=L-E
A15: =A14+Sheet2!G$5 -> 0.13 | B15: 2.017251058 | C15: =(B16-B15)/Sheet2!$G$5 -> 0.2736318408 | F15: xMax - | G15: =xMax -> 2.2 | H15: =L-E -> 2.2
A16: =A15+Sheet2!G$5 -> 0.14 | B16: 2.020246034 | C16: =(B17-B16)/Sheet2!$G$5 -> 0.2955223881 | E16: left line
A17: =A16+Sheet2!G$5 -> 0.15 | B17: 2.023480607 | C17: =(B18-B17)/Sheet2!$G$5 -> 0.3174129353 | F17: x0 - d = | G17: =x0-d -> 0.81 | H17: =L-E -> 2.2 | I17: "= L-E | K17: =x0 -> 1 | L17: =d -> 0.19 | M17: =x0-d -> 0.81
A18: =A17+Sheet2!G$5 -> 0.16 | B18: 2.026954778 | C18: =(B19-B18)/Sheet2!$G$5 -> 0.3393034826 | F18: x0 - d = | G18: =G17 -> 0.81 | H18: =L+E -> 3.8 | I18: "= L+E | M18: =x0+d -> 1.19
A19: =A18+Sheet2!G$5 -> 0.18 | B19: 2.030668548 | C19: =(B20-B19)/Sheet2!$G$5 -> 0.3611940299 | E19: right line
A20: =A19+Sheet2!G$5 -> 0.19 | B20: 2.034621915 | C20: =(B21-B20)/Sheet2!$G$5 -> 0.3830845771 | F20: x0 + d = | G20: =x0+d -> 1.19 | H20: =L-E -> 2.2 | I20: "= L-E
A21: =A20+Sheet2!G$5 -> 0.20 | B21: 2.038814881 | C21: =(B22-B21)/Sheet2!$G$5 -> 0.4049751244 | F21: x0 + d = | G21: =G20 -> 1.19 | H21: =L+E -> 3.8 | I21: "= L+E
A22: =A21+Sheet2!G$5 -> 0.21 | B22: 2.043247444 | C22: =(B23-B22)/Sheet2!$G$5 -> 0.4268656716
A23: =A22+Sheet2!G$5 -> 0.22 | B23: 2.047919606 | C23: =(B24-B23)/Sheet2!$G$5 -> 0.4487562189
A24: =A23+Sheet2!G$5 -> 0.23 | B24: 2.052831366 | C24: =(B25-B24)/Sheet2!$G$5 -> 0.4706467662
A25: =A24+Sheet2!G$5 -> 0.24 | B25: 2.057982723 | C25: =(B26-B25)/Sheet2!$G$5 -> 0.4925373134 | E25: dMax = | F25: =MIN(xMax-x0,x0-xMin) -> 1
A26: =A25+Sheet2!G$5 -> 0.25 | B26: 2.063373679 | C26: =(B27-B26)/Sheet2!$G$5 -> 0.5144278607
A27: =A26+Sheet2!G$5 -> 0.26 | B27: 2.069004233 | C27: =(B28-B27)/Sheet2!$G$5 -> 0.536318408 | E27: dd = | F27: =Sheet1!O31/100*dMax -> 0.19
A28: =A27+Sheet2!G$5 -> 0.27 | B28: 2.074874384 | C28: =(B29-B28)/Sheet2!$G$5 -> 0.5582089552
A29: =A28+Sheet2!G$5 -> 0.28 | B29: 2.080984134 | C29: =(B30-B29)/Sheet2!$G$5 -> 0.5800995025
A30: =A29+Sheet2!G$5 -> 0.30 | B30: 2.087333482 | C30: =(B31-B30)/Sheet2!$G$5 -> 0.6019900498
A31: =A30+Sheet2!G$5 -> 0.31 | B31: 2.093922428 | C31: =(B32-B31)/Sheet2!$G$5 -> 0.623880597
A32: =A31+Sheet2!G$5 -> 0.32 | B32: 2.100750972 | C32: =(B33-B32)/Sheet2!$G$5 -> 0.6457711443
A33: =A32+Sheet2!G$5 -> 0.33 | B33: 2.107819113 | C33: =(B34-B33)/Sheet2!$G$5 -> 0.6676616915
A34: =A33+Sheet2!G$5 -> 0.34 | B34: 2.115126853 | C34: =(B35-B34)/Sheet2!$G$5 -> 0.6895522388
A35: =A34+Sheet2!G$5 -> 0.35 | B35: 2.122674191 | C35: =(B36-B35)/Sheet2!$G$5 -> 0.7114427861
A36: =A35+Sheet2!G$5 -> 0.36 | B36: 2.130461127 | C36: =(B37-B36)/Sheet2!$G$5 -> 0.7333333333
A37: =A36+Sheet2!G$5 -> 0.37 | B37: 2.138487661 | C37: =(B38-B37)/Sheet2!$G$5 -> 0.7552238806
A38: =A37+Sheet2!G$5 -> 0.38 | B38: 2.146753793 | C38: =(B39-B38)/Sheet2!$G$5 -> 0.7771144279
A39: =A38+Sheet2!G$5 -> 0.39 | B39: 2.155259523 | C39: =(B40-B39)/Sheet2!$G$5 -> 0.7990049751
A40: =A39+Sheet2!G$5 -> 0.40 | B40: 2.164004851 | C40: =(B41-B40)/Sheet2!$G$5 -> 0.8208955224
A41: =A40+Sheet2!G$5 -> 0.42 | B41: 2.172989777 | C41: =(B42-B41)/Sheet2!$G$5 -> 0.8427860697
A42: =A41+Sheet2!G$5 -> 0.43 | B42: 2.182214302 | C42: =(B43-B42)/Sheet2!$G$5 -> 0.8646766169
A43: =A42+Sheet2!G$5 -> 0.44 | B43: 2.191678424 | C43: =(B44-B43)/Sheet2!$G$5 -> 0.8865671642
A44: =A43+Sheet2!G$5 -> 0.45 | B44: 2.201382144 | C44: =(B45-B44)/Sheet2!$G$5 -> 0.9084577114
A45: =A44+Sheet2!G$5 -> 0.46 | B45: 2.211325462 | C45: =(B46-B45)/Sheet2!$G$5 -> 0.9303482587
A46: =A45+Sheet2!G$5 -> 0.47 | B46: 2.221508379 | C46: =(B47-B46)/Sheet2!$G$5 -> 0.952238806
A47: =A46+Sheet2!G$5 -> 0.48 | B47: 2.231930893 | C47: =(B48-B47)/Sheet2!$G$5 -> 0.9741293532
A48: =A47+Sheet2!G$5 -> 0.49 | B48: 2.242593005 | C48: =(B49-B48)/Sheet2!$G$5 -> 0.9960199005
A49: =A48+Sheet2!G$5 -> 0.50 | B49: 2.253494715 | C49: =(B50-B49)/Sheet2!$G$5 -> 1.017910448
A50: =A49+Sheet2!G$5 -> 0.51 | B50: 2.264636024 | C50: =(B51-B50)/Sheet2!$G$5 -> 1.039800995
A51: =A50+Sheet2!G$5 -> 0.53 | B51: 2.27601693 | C51: =(B52-B51)/Sheet2!$G$5 -> 1.061691542
A52: =A51+Sheet2!G$5 -> 0.54 | B52: 2.287637435 | C52: =(B53-B52)/Sheet2!$G$5 -> 1.08358209
A53: =A52+Sheet2!G$5 -> 0.55 | B53: 2.299497537 | C53: =(B54-B53)/Sheet2!$G$5 -> 1.105472637
A54: =A53+Sheet2!G$5 -> 0.56 | B54: 2.311597238 | C54: =(B55-B54)/Sheet2!$G$5 -> 1.127363184
A55: =A54+Sheet2!G$5 -> 0.57 | B55: 2.323936536 | C55: =(B56-B55)/Sheet2!$G$5 -> 1.149253731
A56: =A55+Sheet2!G$5 -> 0.58 | B56: 2.336515433 | C56: =(B57-B56)/Sheet2!$G$5 -> 1.171144279
A57: =A56+Sheet2!G$5 -> 0.59 | B57: 2.349333927 | C57: =(B58-B57)/Sheet2!$G$5 -> 1.193034826
A58: =A57+Sheet2!G$5 -> 0.60 | B58: 2.36239202 | C58: =(B59-B58)/Sheet2!$G$5 -> 1.214925373
A59: =A58+Sheet2!G$5 -> 0.61 | B59: 2.375689711 | C59: =(B60-B59)/Sheet2!$G$5 -> 1.23681592
A60: =A59+Sheet2!G$5 -> 0.62 | B60: 2.389226999 | C60: =(B61-B60)/Sheet2!$G$5 -> 1.258706468
A61: =A60+Sheet2!G$5 -> 0.63 | B61: 2.403003886 | C61: =(B62-B61)/Sheet2!$G$5 -> 1.280597015
A62: =A61+Sheet2!G$5 -> 0.65 | B62: 2.417020371 | C62: =(B63-B62)/Sheet2!$G$5 -> 1.302487562
A63: =A62+Sheet2!G$5 -> 0.66 | B63: 2.431276454 | C63: =(B64-B63)/Sheet2!$G$5 -> 1.324378109
A64: =A63+Sheet2!G$5 -> 0.67 | B64: 2.445772134 | C64: =(B65-B64)/Sheet2!$G$5 -> 1.346268657
A65: =A64+Sheet2!G$5 -> 0.68 | B65: 2.460507413 | C65: =(B66-B65)/Sheet2!$G$5 -> 1.368159204
A66: =A65+Sheet2!G$5 -> 0.69 | B66: 2.47548229 | C66: =(B67-B66)/Sheet2!$G$5 -> 1.390049751
A67: =A66+Sheet2!G$5 -> 0.70 | B67: =x^2+2 -> 2.490696765 | C67: =(B68-B67)/Sheet2!$G$5 -> 1.411940299
A68: =A67+Sheet2!G$5 -> 0.71 | B68: 2.506150838 | C68: =(B69-B68)/Sheet2!$G$5 -> 1.433830846
A69: =A68+Sheet2!G$5 -> 0.72 | B69: 2.521844509 | C69: =(B70-B69)/Sheet2!$G$5 -> 1.455721393
A70: =A69+Sheet2!G$5 -> 0.73 | B70: 2.537777778 | C70: =(B71-B70)/Sheet2!$G$5 -> 1.47761194
A71: =A70+Sheet2!G$5 -> 0.74 | B71: 2.553950645 | C71: =(B72-B71)/Sheet2!$G$5 -> 1.499502488
A72: =A71+Sheet2!G$5 -> 0.76 | B72: 2.57036311 | C72: =(B73-B72)/Sheet2!$G$5 -> 1.521393035
A73: =A72+Sheet2!G$5 -> 0.77 | B73: 2.587015173 | C73: =(B74-B73)/Sheet2!$G$5 -> 1.543283582
A74: =A73+Sheet2!G$5 -> 0.78 | B74: 2.603906834 | C74: =(B75-B74)/Sheet2!$G$5 -> 1.565174129
A75: =A74+Sheet2!G$5 -> 0.79 | B75: 2.621038093 | C75: =(B76-B75)/Sheet2!$G$5 -> 1.587064677
A76: =A75+Sheet2!G$5 -> 0.80 | B76: 2.63840895 | C76: =(B77-B76)/Sheet2!$G$5 -> 1.608955224
A77: =A76+Sheet2!G$5 -> 0.81 | B77: 2.656019405 | C77: =(B78-B77)/Sheet2!$G$5 -> 1.630845771
A78: =A77+Sheet2!G$5 -> 0.82 | B78: 2.673869459 | C78: =(B79-B78)/Sheet2!$G$5 -> 1.652736318
A79: =A78+Sheet2!G$5 -> 0.83 | B79: 2.69195911 | C79: =(B80-B79)/Sheet2!$G$5 -> 1.674626866
A80: =A79+Sheet2!G$5 -> 0.84 | B80: 2.710288359 | C80: =(B81-B80)/Sheet2!$G$5 -> 1.696517413
A81: =A80+Sheet2!G$5 -> 0.85 | B81: 2.728857207 | C81: =(B82-B81)/Sheet2!$G$5 -> 1.71840796
A82: =A81+Sheet2!G$5 -> 0.86 | B82: 2.747665652 | C82: =(B83-B82)/Sheet2!$G$5 -> 1.740298507
A83: =A82+Sheet2!G$5 -> 0.88 | B83: 2.766713695 | C83: =(B84-B83)/Sheet2!$G$5 -> 1.762189055
A84: =A83+Sheet2!G$5 -> 0.89 | B84: 2.786001337 | C84: =(B85-B84)/Sheet2!$G$5 -> 1.784079602
A85: =A84+Sheet2!G$5 -> 0.90 | B85: 2.805528576 | C85: =(B86-B85)/Sheet2!$G$5 -> 1.805970149
A86: =A85+Sheet2!G$5 -> 0.91 | B86: 2.825295413 | C86: =(B87-B86)/Sheet2!$G$5 -> 1.827860697
A87: =A86+Sheet2!G$5 -> 0.92 | B87: 2.845301849 | C87: =(B88-B87)/Sheet2!$G$5 -> 1.849751244
A88: =A87+Sheet2!G$5 -> 0.93 | B88: 2.865547882 | C88: =(B89-B88)/Sheet2!$G$5 -> 1.871641791
A89: =A88+Sheet2!G$5 -> 0.94 | B89: 2.886033514 | C89: =(B90-B89)/Sheet2!$G$5 -> 1.893532338
A90: =A89+Sheet2!G$5 -> 0.95 | B90: 2.906758744 | C90: =(B91-B90)/Sheet2!$G$5 -> 1.915422886
A91: =A90+Sheet2!G$5 -> 0.96 | B91: 2.927723571 | C91: =(B92-B91)/Sheet2!$G$5 -> 1.937313433
A92: =A91+Sheet2!G$5 -> 0.97 | B92: 2.948927997 | C92: =(B93-B92)/Sheet2!$G$5 -> 1.95920398
A93: =A92+Sheet2!G$5 -> 0.99 | B93: 2.97037202 | C93: =(B94-B93)/Sheet2!$G$5 -> 1.981094527
A94: =A93+Sheet2!G$5 -> 1.00 | B94: 2.992055642 | C94: =(B95-B94)/Sheet2!$G$5 -> 2.002985075
A95: =A94+Sheet2!G$5 -> 1.01 | B95: 3.013978862 | C95: =(B96-B95)/Sheet2!$G$5 -> 2.024875622
A96: =A95+Sheet2!G$5 -> 1.02 | B96: 3.03614168 | C96: =(B97-B96)/Sheet2!$G$5 -> 2.046766169
A97: =A96+Sheet2!G$5 -> 1.03 | B97: 3.058544095 | C97: =(B98-B97)/Sheet2!$G$5 -> 2.068656716
A98: =A97+Sheet2!G$5 -> 1.04 | B98: 3.081186109 | C98: =(B99-B98)/Sheet2!$G$5 -> 2.090547264
A99: =A98+Sheet2!G$5 -> 1.05 | B99: 3.104067721 | C99: =(B100-B99)/Sheet2!$G$5 -> 2.112437811
A100: =A99+Sheet2!G$5 -> 1.06 | B100: 3.127188931 | C100: =(B101-B100)/Sheet2!$G$5 -> 2.134328358
A101: =A100+Sheet2!G$5 -> 1.07 | B101: 3.150549739 | C101: =(B102-B101)/Sheet2!$G$5 -> 2.156218905
A102: =A101+Sheet2!G$5 -> 1.08 | B102: 3.174150145 | C102: =(B103-B102)/Sheet2!$G$5 -> 2.178109453
A103: =A102+Sheet2!G$5 -> 1.09 | B103: 3.197990149 | C103: =(B104-B103)/Sheet2!$G$5 -> 2.2
A104: =A103+Sheet2!G$5 -> 1.11 | B104: 3.222069751 | C104: =(B105-B104)/Sheet2!$G$5 -> 2.221890547
A105: =A104+Sheet2!G$5 -> 1.12 | B105: 3.246388951 | C105: =(B106-B105)/Sheet2!$G$5 -> 2.243781095
A106: =A105+Sheet2!G$5 -> 1.13 | B106: 3.270947749 | C106: =(B107-B106)/Sheet2!$G$5 -> 2.265671642
A107: =A106+Sheet2!G$5 -> 1.14 | B107: 3.295746145 | C107: =(B108-B107)/Sheet2!$G$5 -> 2.287562189
A108: =A107+Sheet2!G$5 -> 1.15 | B108: 3.320784139 | C108: =(B109-B108)/Sheet2!$G$5 -> 2.309452736
A109: =A108+Sheet2!G$5 -> 1.16 | B109: 3.346061731 | C109: =(B110-B109)/Sheet2!$G$5 -> 2.331343284
A110: =A109+Sheet2!G$5 -> 1.17 | B110: 3.371578921 | C110: =(B111-B110)/Sheet2!$G$5 -> 2.353233831
A111: =A110+Sheet2!G$5 -> 1.18 | B111: 3.39733571 | C111: =(B112-B111)/Sheet2!$G$5 -> 2.375124378
A112: =A111+Sheet2!G$5 -> 1.19 | B112: 3.423332096 | C112: =(B113-B112)/Sheet2!$G$5 -> 2.397014925
A113: =A112+Sheet2!G$5 -> 1.20 | B113: 3.44956808 | C113: =(B114-B113)/Sheet2!$G$5 -> 2.418905473
A114: =A113+Sheet2!G$5 -> 1.21 | B114: 3.476043662 | C114: =(B115-B114)/Sheet2!$G$5 -> 2.44079602
A115: =A114+Sheet2!G$5 -> 1.23 | B115: 3.502758843 | C115: =(B116-B115)/Sheet2!$G$5 -> 2.462686567
A116: =A115+Sheet2!G$5 -> 1.24 | B116: 3.529713621 | C116: =(B117-B116)/Sheet2!$G$5 -> 2.484577114
A117: =A116+Sheet2!G$5 -> 1.25 | B117: 3.556907997 | C117: =(B118-B117)/Sheet2!$G$5 -> 2.506467662
A118: =A117+Sheet2!G$5 -> 1.26 | B118: 3.584341972 | C118: =(B119-B118)/Sheet2!$G$5 -> 2.528358209
A119: =A118+Sheet2!G$5 -> 1.27 | B119: 3.612015544 | C119: =(B120-B119)/Sheet2!$G$5 -> 2.550248756
A120: =A119+Sheet2!G$5 -> 1.28 | B120: 3.639928715 | C120: =(B121-B120)/Sheet2!$G$5 -> 2.572139303
A121: =A120+Sheet2!G$5 -> 1.29 | B121: 3.668081483 | C121: =(B122-B121)/Sheet2!$G$5 -> 2.594029851
A122: =A121+Sheet2!G$5 -> 1.30 | B122: 3.69647385 | C122: =(B123-B122)/Sheet2!$G$5 -> 2.615920398
A123: =A122+Sheet2!G$5 -> 1.31 | B123: 3.725105814 | C123: =(B124-B123)/Sheet2!$G$5 -> 2.637810945
A124: =A123+Sheet2!G$5 -> 1.32 | B124: 3.753977377 | C124: =(B125-B124)/Sheet2!$G$5 -> 2.659701493
A125: =A124+Sheet2!G$5 -> 1.34 | B125: 3.783088537 | C125: =(B126-B125)/Sheet2!$G$5 -> 2.68159204
A126: =A125+Sheet2!G$5 -> 1.35 | B126: 3.812439296 | C126: =(B127-B126)/Sheet2!$G$5 -> 2.703482587
A127: =A126+Sheet2!G$5 -> 1.36 | B127: 3.842029653 | C127: =(B128-B127)/Sheet2!$G$5 -> 2.725373134
A128: =A127+Sheet2!G$5 -> 1.37 | B128: 3.871859607 | C128: =(B129-B128)/Sheet2!$G$5 -> 2.747263682
A129: =A128+Sheet2!G$5 -> 1.38 | B129: 3.90192916 | C129: =(B130-B129)/Sheet2!$G$5 -> 2.769154229
A130: =A129+Sheet2!G$5 -> 1.39 | B130: 3.932238311 | C130: =(B131-B130)/Sheet2!$G$5 -> 2.791044776
A131: =A130+Sheet2!G$5 -> 1.40 | B131: =x^2+2 -> 3.96278706 | C131: =(B132-B131)/Sheet2!$G$5 -> 2.812935323
A132: =A131+Sheet2!G$5 -> 1.41 | B132: 3.993575407 | C132: =(B133-B132)/Sheet2!$G$5 -> 2.834825871
A133: =A132+Sheet2!G$5 -> 1.42 | B133: 4.024603351 | C133: =(B134-B133)/Sheet2!$G$5 -> 2.856716418
A134: =A133+Sheet2!G$5 -> 1.43 | B134: 4.055870894 | C134: =(B135-B134)/Sheet2!$G$5 -> 2.878606965
A135: =A134+Sheet2!G$5 -> 1.44 | B135: 4.087378035 | C135: =(B136-B135)/Sheet2!$G$5 -> 2.900497512
A136: =A135+Sheet2!G$5 -> 1.46 | B136: 4.119124774 | C136: =(B137-B136)/Sheet2!$G$5 -> 2.92238806
A137: =A136+Sheet2!G$5 -> 1.47 | B137: 4.151111111 | C137: =(B138-B137)/Sheet2!$G$5 -> 2.944278607
A138: =A137+Sheet2!G$5 -> 1.48 | B138: 4.183337046 | C138: =(B139-B138)/Sheet2!$G$5 -> 2.966169154
A139: =A138+Sheet2!G$5 -> 1.49 | B139: 4.215802579 | C139: =(B140-B139)/Sheet2!$G$5 -> 2.988059701
A140: =A139+Sheet2!G$5 -> 1.50 | B140: 4.24850771 | C140: =(B141-B140)/Sheet2!$G$5 -> 3.009950249
A141: =A140+Sheet2!G$5 -> 1.51 | B141: 4.281452439 | C141: =(B142-B141)/Sheet2!$G$5 -> 3.031840796
A142: =A141+Sheet2!G$5 -> 1.52 | B142: 4.314636766 | C142: =(B143-B142)/Sheet2!$G$5 -> 3.053731343
A143: =A142+Sheet2!G$5 -> 1.53 | B143: 4.348060692 | C143: =(B144-B143)/Sheet2!$G$5 -> 3.075621891
A144: =A143+Sheet2!G$5 -> 1.54 | B144: 4.381724215 | C144: =(B145-B144)/Sheet2!$G$5 -> 3.097512438
A145: =A144+Sheet2!G$5 -> 1.55 | B145: 4.415627336 | C145: =(B146-B145)/Sheet2!$G$5 -> 3.119402985
A146: =A145+Sheet2!G$5 -> 1.57 | B146: 4.449770055 | C146: =(B147-B146)/Sheet2!$G$5 -> 3.141293532
A147: =A146+Sheet2!G$5 -> 1.58 | B147: 4.484152372 | C147: =(B148-B147)/Sheet2!$G$5 -> 3.16318408
A148: =A147+Sheet2!G$5 -> 1.59 | B148: 4.518774288 | C148: =(B149-B148)/Sheet2!$G$5 -> 3.185074627
A149: =A148+Sheet2!G$5 -> 1.60 | B149: 4.553635801 | C149: =(B150-B149)/Sheet2!$G$5 -> 3.206965174
A150: =A149+Sheet2!G$5 -> 1.61 | B150: 4.588736912 | C150: =(B151-B150)/Sheet2!$G$5 -> 3.228855721
A151: =A150+Sheet2!G$5 -> 1.62 | B151: 4.624077622 | C151: =(B152-B151)/Sheet2!$G$5 -> 3.250746269
A152: =A151+Sheet2!G$5 -> 1.63 | B152: 4.659657929 | C152: =(B153-B152)/Sheet2!$G$5 -> 3.272636816
A153: =A152+Sheet2!G$5 -> 1.64 | B153: 4.695477835 | C153: =(B154-B153)/Sheet2!$G$5 -> 3.294527363
A154: =A153+Sheet2!G$5 -> 1.65 | B154: 4.731537338 | C154: =(B155-B154)/Sheet2!$G$5 -> 3.31641791
A155: =A154+Sheet2!G$5 -> 1.66 | B155: 4.76783644 | C155: =(B156-B155)/Sheet2!$G$5 -> 3.338308458
A156: =A155+Sheet2!G$5 -> 1.67 | B156: 4.804375139 | C156: =(B157-B156)/Sheet2!$G$5 -> 3.360199005
A157: =A156+Sheet2!G$5 -> 1.69 | B157: 4.841153437 | C157: =(B158-B157)/Sheet2!$G$5 -> 3.382089552
A158: =A157+Sheet2!G$5 -> 1.70 | B158: 4.878171332 | C158: =(B159-B158)/Sheet2!$G$5 -> 3.4039801
A159: =A158+Sheet2!G$5 -> 1.71 | B159: 4.915428826 | C159: =(B160-B159)/Sheet2!$G$5 -> 3.425870647
A160: =A159+Sheet2!G$5 -> 1.72 | B160: 4.952925918 | C160: =(B161-B160)/Sheet2!$G$5 -> 3.447761194
A161: =A160+Sheet2!G$5 -> 1.73 | B161: 4.990662607 | C161: =(B162-B161)/Sheet2!$G$5 -> 3.469651741
A162: =A161+Sheet2!G$5 -> 1.74 | B162: 5.028638895 | C162: =(B163-B162)/Sheet2!$G$5 -> 3.491542289
A163: =A162+Sheet2!G$5 -> 1.75 | B163: 5.066854781 | C163: =(B164-B163)/Sheet2!$G$5 -> 3.513432836
A164: =A163+Sheet2!G$5 -> 1.76 | B164: 5.105310265 | C164: =(B165-B164)/Sheet2!$G$5 -> 3.535323383
A165: =A164+Sheet2!G$5 -> 1.77 | B165: 5.144005346 | C165: =(B166-B165)/Sheet2!$G$5 -> 3.55721393
A166: =A165+Sheet2!G$5 -> 1.78 | B166: 5.182940026 | C166: =(B167-B166)/Sheet2!$G$5 -> 3.579104478
A167: =A166+Sheet2!G$5 -> 1.80 | B167: 5.222114304 | C167: =(B168-B167)/Sheet2!$G$5 -> 3.600995025
A168: =A167+Sheet2!G$5 -> 1.81 | B168: 5.26152818 | C168: =(B169-B168)/Sheet2!$G$5 -> 3.622885572
A169: =A168+Sheet2!G$5 -> 1.82 | B169: 5.301181654 | C169: =(B170-B169)/Sheet2!$G$5 -> 3.644776119
A170: =A169+Sheet2!G$5 -> 1.83 | B170: 5.341074726 | C170: =(B171-B170)/Sheet2!$G$5 -> 3.666666667
A171: =A170+Sheet2!G$5 -> 1.84 | B171: 5.381207396 | C171: =(B172-B171)/Sheet2!$G$5 -> 3.688557214
A172: =A171+Sheet2!G$5 -> 1.85 | B172: 5.421579664 | C172: =(B173-B172)/Sheet2!$G$5 -> 3.710447761
A173: =A172+Sheet2!G$5 -> 1.86 | B173: 5.46219153 | C173: =(B174-B173)/Sheet2!$G$5 -> 3.732338308
A174: =A173+Sheet2!G$5 -> 1.87 | B174: 5.503042994 | C174: =(B175-B174)/Sheet2!$G$5 -> 3.754228856
A175: =A174+Sheet2!G$5 -> 1.88 | B175: 5.544134056 | C175: =(B176-B175)/Sheet2!$G$5 -> 3.776119403
A176: =A175+Sheet2!G$5 -> 1.89 | B176: 5.585464716 | C176: =(B177-B176)/Sheet2!$G$5 -> 3.79800995
A177: =A176+Sheet2!G$5 -> 1.90 | B177: 5.627034974 | C177: =(B178-B177)/Sheet2!$G$5 -> 3.819900498
A178: =A177+Sheet2!G$5 -> 1.92 | B178: 5.668844831 | C178: =(B179-B178)/Sheet2!$G$5 -> 3.841791045
A179: =A178+Sheet2!G$5 -> 1.93 | B179: 5.710894285 | C179: =(B180-B179)/Sheet2!$G$5 -> 3.863681592
A180: =A179+Sheet2!G$5 -> 1.94 | B180: 5.753183337 | C180: =(B181-B180)/Sheet2!$G$5 -> 3.885572139
A181: =A180+Sheet2!G$5 -> 1.95 | B181: 5.795711987 | C181: =(B182-B181)/Sheet2!$G$5 -> 3.907462687
A182: =A181+Sheet2!G$5 -> 1.96 | B182: 5.838480236 | C182: =(B183-B182)/Sheet2!$G$5 -> 3.929353234
A183: =A182+Sheet2!G$5 -> 1.97 | B183: 5.881488082 | C183: =(B184-B183)/Sheet2!$G$5 -> 3.951243781
A184: =A183+Sheet2!G$5 -> 1.98 | B184: 5.924735526 | C184: =(B185-B184)/Sheet2!$G$5 -> 3.973134328
A185: =A184+Sheet2!G$5 -> 1.99 | B185: 5.968222569 | C185: =(B186-B185)/Sheet2!$G$5 -> 3.995024876
A186: =A185+Sheet2!G$5 -> 2.00 | B186: 6.011949209 | C186: =(B187-B186)/Sheet2!$G$5 -> 4.016915423
A187: =A186+Sheet2!G$5 -> 2.01 | B187: 6.055915448 | C187: =(B188-B187)/Sheet2!$G$5 -> 4.03880597
A188: =A187+Sheet2!G$5 -> 2.02 | B188: 6.100121284 | C188: =(B189-B188)/Sheet2!$G$5 -> 4.060696517
A189: =A188+Sheet2!G$5 -> 2.04 | B189: 6.144566719 | C189: =(B190-B189)/Sheet2!$G$5 -> 4.082587065
A190: =A189+Sheet2!G$5 -> 2.05 | B190: 6.189251751 | C190: =(B191-B190)/Sheet2!$G$5 -> 4.104477612
A191: =A190+Sheet2!G$5 -> 2.06 | B191: 6.234176382 | C191: =(B192-B191)/Sheet2!$G$5 -> 4.126368159
A192: =A191+Sheet2!G$5 -> 2.07 | B192: 6.27934061 | C192: =(B193-B192)/Sheet2!$G$5 -> 4.148258706
A193: =A192+Sheet2!G$5 -> 2.08 | B193: 6.324744437 | C193: =(B194-B193)/Sheet2!$G$5 -> 4.170149254
A194: =A193+Sheet2!G$5 -> 2.09 | B194: 6.370387862 | C194: =(B195-B194)/Sheet2!$G$5 -> 4.192039801
A195: =A194+Sheet2!G$5 -> 2.10 | B195: =x^2+2 -> 6.416270884 | C195: =(B196-B195)/Sheet2!$G$5 -> 4.213930348
A196: =A195+Sheet2!G$5 -> 2.11 | B196: 6.462393505 | C196: =(B197-B196)/Sheet2!$G$5 -> 4.235820896
A197: =A196+Sheet2!G$5 -> 2.12 | B197: 6.508755724 | C197: =(B198-B197)/Sheet2!$G$5 -> 4.257711443
A198: =A197+Sheet2!G$5 -> 2.13 | B198: 6.555357541 | C198: =(B199-B198)/Sheet2!$G$5 -> 4.27960199
A199: =A198+Sheet2!G$5 -> 2.15 | B199: 6.602198955 | C199: =(B200-B199)/Sheet2!$G$5 -> 4.301492537
A200: =A199+Sheet2!G$5 -> 2.16 | B200: 6.649279968 | C200: =(B201-B200)/Sheet2!$G$5 -> 4.323383085
... 804 more rows

Sheet Sheet3
A1: =xMin -> 0 | B1: =9 -> 9
A2: =A1+dx -> 0.01094527363 | B2: =9 -> 9
A3: 0.02189054726 | B3: =9 -> 9
A4: 0.0328358209 | B4: =9 -> 9
A5: 0.04378109453 | B5: =9 -> 9
A6: 0.05472636816 | B6: =9 -> 9
A7: 0.06567164179 | B7: =9 -> 9
A8: 0.07661691542 | B8: =9 -> 9
A9: 0.08756218905 | B9: =9 -> 9
A10: 0.09850746269 | B10: =9 -> 9
A11: 0.1094527363 | B11: =9 -> 9
A12: 0.12039801 | B12: =9 -> 9
A13: 0.1313432836 | B13: =9 -> 9
A14: 0.1422885572 | B14: =9 -> 9
A15: 0.1532338308 | B15: =9 -> 9
A16: 0.1641791045 | B16: =9 -> 9
A17: 0.1751243781 | B17: =9 -> 9
A18: 0.1860696517 | B18: =9 -> 9
A19: 0.1970149254 | B19: =9 -> 9
A20: 0.207960199 | B20: =9 -> 9
A21: 0.2189054726 | B21: =9 -> 9
A22: 0.2298507463 | B22: =9 -> 9
A23: 0.2407960199 | B23: =9 -> 9
A24: 0.2517412935 | B24: =9 -> 9
A25: 0.2626865672 | B25: =9 -> 9
A26: 0.2736318408 | B26: =9 -> 9
A27: 0.2845771144 | B27: =9 -> 9
A28: 0.2955223881 | B28: =9 -> 9
A29: 0.3064676617 | B29: =9 -> 9
A30: 0.3174129353 | B30: =9 -> 9
A31: 0.328358209 | B31: =9 -> 9
A32: 0.3393034826 | B32: =9 -> 9
A33: 0.3502487562 | B33: =9 -> 9
A34: 0.3611940299 | B34: =9 -> 9
A35: 0.3721393035 | B35: =9 -> 9
A36: 0.3830845771 | B36: =9 -> 9
A37: 0.3940298507 | B37: =9 -> 9
A38: 0.4049751244 | B38: =9 -> 9
A39: 0.415920398 | B39: =9 -> 9
A40: 0.4268656716 | B40: =9 -> 9
A41: 0.4378109453 | B41: =9 -> 9
A42: 0.4487562189 | B42: =9 -> 9
A43: 0.4597014925 | B43: =9 -> 9
A44: 0.4706467662 | B44: =9 -> 9
A45: 0.4815920398 | B45: =9 -> 9
A46: 0.4925373134 | B46: =9 -> 9
A47: 0.5034825871 | B47: =9 -> 9
A48: 0.5144278607 | B48: =9 -> 9
A49: 0.5253731343 | B49: =9 -> 9
A50: 0.536318408 | B50: =9 -> 9
A51: 0.5472636816 | B51: =9 -> 9
A52: 0.5582089552 | B52: =9 -> 9
A53: 0.5691542289 | B53: =9 -> 9
A54: 0.5800995025 | B54: =9 -> 9
A55: 0.5910447761 | B55: =9 -> 9
A56: 0.6019900498 | B56: =9 -> 9
A57: 0.6129353234 | B57: =9 -> 9
A58: 0.623880597 | B58: =9 -> 9
A59: 0.6348258706 | B59: =9 -> 9
A60: 0.6457711443 | B60: =9 -> 9
A61: 0.6567164179 | B61: =9 -> 9
A62: 0.6676616915 | B62: =9 -> 9
A63: 0.6786069652 | B63: =9 -> 9
A64: 0.6895522388 | B64: =9 -> 9
A65: 0.7004975124 | B65: =9 -> 9
A66: =A65+dx -> 0.7114427861 | B66: =9 -> 9
A67: 0.7223880597 | B67: =9 -> 9
A68: 0.7333333333 | B68: =9 -> 9
A69: 0.744278607 | B69: =9 -> 9
A70: 0.7552238806 | B70: =9 -> 9
A71: 0.7661691542 | B71: =9 -> 9
A72: 0.7771144279 | B72: =9 -> 9
A73: 0.7880597015 | B73: =9 -> 9
A74: 0.7990049751 | B74: =9 -> 9
A75: 0.8099502488 | B75: =9 -> 9
A76: 0.8208955224 | B76: =9 -> 9
A77: 0.831840796 | B77: =9 -> 9
A78: 0.8427860697 | B78: =9 -> 9
A79: 0.8537313433 | B79: =9 -> 9
A80: 0.8646766169 | B80: =9 -> 9
A81: 0.8756218905 | B81: =9 -> 9
A82: 0.8865671642 | B82: =9 -> 9
A83: 0.8975124378 | B83: =9 -> 9
A84: 0.9084577114 | B84: =9 -> 9
A85: 0.9194029851 | B85: =9 -> 9
A86: 0.9303482587 | B86: =9 -> 9
A87: 0.9412935323 | B87: =9 -> 9
A88: 0.952238806 | B88: =9 -> 9
A89: 0.9631840796 | B89: =9 -> 9
A90: 0.9741293532 | B90: =9 -> 9
A91: 0.9850746269 | B91: =9 -> 9
A92: 0.9960199005 | B92: =9 -> 9
A93: 1.006965174 | B93: =9 -> 9
A94: 1.017910448 | B94: =9 -> 9
A95: 1.028855721 | B95: =9 -> 9
A96: 1.039800995 | B96: =9 -> 9
A97: 1.050746269 | B97: =9 -> 9
A98: 1.061691542 | B98: =9 -> 9
A99: 1.072636816 | B99: =9 -> 9
A100: 1.08358209 | B100: =9 -> 9
A101: 1.094527363 | B101: =9 -> 9
A102: 1.105472637 | B102: =9 -> 9
A103: 1.11641791 | B103: =9 -> 9
A104: 1.127363184 | B104: =9 -> 9
A105: 1.138308458 | B105: =9 -> 9
A106: 1.149253731 | B106: =9 -> 9
A107: 1.160199005 | B107: =9 -> 9
A108: 1.171144279 | B108: =9 -> 9
A109: 1.182089552 | B109: =9 -> 9
A110: 1.193034826 | B110: =9 -> 9
A111: 1.2039801 | B111: =9 -> 9
A112: 1.214925373 | B112: =9 -> 9
A113: 1.225870647 | B113: =9 -> 9
A114: 1.23681592 | B114: =9 -> 9
A115: 1.247761194 | B115: =9 -> 9
A116: 1.258706468 | B116: =9 -> 9
A117: 1.269651741 | B117: =9 -> 9
A118: 1.280597015 | B118: =9 -> 9
A119: 1.291542289 | B119: =9 -> 9
A120: 1.302487562 | B120: =9 -> 9
A121: 1.313432836 | B121: =9 -> 9
A122: 1.324378109 | B122: =9 -> 9
A123: 1.335323383 | B123: =9 -> 9
A124: 1.346268657 | B124: =9 -> 9
A125: 1.35721393 | B125: =9 -> 9
A126: 1.368159204 | B126: =9 -> 9
A127: 1.379104478 | B127: =9 -> 9
A128: 1.390049751 | B128: =9 -> 9
A129: 1.400995025 | B129: =9 -> 9
A130: =A129+dx -> 1.411940299 | B130: =9 -> 9
A131: 1.422885572 | B131: =9 -> 9
A132: 1.433830846 | B132: =9 -> 9
A133: 1.444776119 | B133: =9 -> 9
A134: 1.455721393 | B134: =9 -> 9
A135: 1.466666667 | B135: =9 -> 9
A136: 1.47761194 | B136: =9 -> 9
A137: 1.488557214 | B137: =9 -> 9
A138: 1.499502488 | B138: =9 -> 9
A139: 1.510447761 | B139: =9 -> 9
A140: 1.521393035 | B140: =9 -> 9
A141: 1.532338308 | B141: =9 -> 9
A142: 1.543283582 | B142: =9 -> 9
A143: 1.554228856 | B143: =9 -> 9
A144: 1.565174129 | B144: =9 -> 9
A145: 1.576119403 | B145: =9 -> 9
A146: 1.587064677 | B146: =9 -> 9
A147: 1.59800995 | B147: =9 -> 9
A148: 1.608955224 | B148: =9 -> 9
A149: 1.619900498 | B149: =9 -> 9
A150: 1.630845771 | B150: =9 -> 9
A151: 1.641791045 | B151: =9 -> 9
A152: 1.652736318 | B152: =9 -> 9
A153: 1.663681592 | B153: =9 -> 9
A154: 1.674626866 | B154: =9 -> 9
A155: 1.685572139 | B155: =9 -> 9
A156: 1.696517413 | B156: =9 -> 9
A157: 1.707462687 | B157: =9 -> 9
A158: 1.71840796 | B158: =9 -> 9
A159: 1.729353234 | B159: =9 -> 9
A160: 1.740298507 | B160: =9 -> 9
A161: 1.751243781 | B161: =9 -> 9
A162: 1.762189055 | B162: =9 -> 9
A163: 1.773134328 | B163: =9 -> 9
A164: 1.784079602 | B164: =9 -> 9
A165: 1.795024876 | B165: =9 -> 9
A166: 1.805970149 | B166: =9 -> 9
A167: 1.816915423 | B167: =9 -> 9
A168: 1.827860697 | B168: =9 -> 9
A169: 1.83880597 | B169: =9 -> 9
A170: 1.849751244 | B170: =9 -> 9
A171: 1.860696517 | B171: =9 -> 9
A172: 1.871641791 | B172: =9 -> 9
A173: 1.882587065 | B173: =9 -> 9
A174: 1.893532338 | B174: =9 -> 9
A175: 1.904477612 | B175: =9 -> 9
A176: 1.915422886 | B176: =9 -> 9
A177: 1.926368159 | B177: =9 -> 9
A178: 1.937313433 | B178: =9 -> 9
A179: 1.948258706 | B179: =9 -> 9
A180: 1.95920398 | B180: =9 -> 9
A181: 1.970149254 | B181: =9 -> 9
A182: 1.981094527 | B182: =9 -> 9
A183: 1.992039801 | B183: =9 -> 9
A184: 2.002985075 | B184: =9 -> 9
A185: 2.013930348 | B185: =9 -> 9
A186: 2.024875622 | B186: =9 -> 9
A187: 2.035820896 | B187: =9 -> 9
A188: 2.046766169 | B188: =9 -> 9
A189: 2.057711443 | B189: =9 -> 9
A190: 2.068656716 | B190: =9 -> 9
A191: 2.07960199 | B191: =9 -> 9
A192: 2.090547264 | B192: =9 -> 9
A193: 2.101492537 | B193: =9 -> 9
A194: =A193+dx -> 2.112437811 | B194: =9 -> 9
A195: 2.123383085 | B195: =9 -> 9
A196: 2.134328358 | B196: =9 -> 9
A197: 2.145273632 | B197: =9 -> 9
A198: 2.156218905 | B198: =9 -> 9
A199: 2.167164179 | B199: =9 -> 9
A200: 2.178109453 | B200: =9 -> 9
... 803 more rows

Sheet Defining Function
A1: Defining a Function in Excel
A3: Computers have very specific rules you must follow when defining a function. If you don't, the program will either not work at all or will work incorrectly.
A5: 1. The Variable used should be the one named in the instruction, usually x, though sometimes y, t, Q (for an angle theta),
A6: or even x and y (for a function of two variables).
A8: 2. Order of Operations: There five arithmetic operations, addition (+), subtraction (-), multiplication (*), division (/), and exponentiation or power (^). When computers see any of these operation symbols, they perform the indicated steps in a very particular order. First, the power is done. Second, products and quotients of adjacent terms is done. Third, and last, sums and differences of adjacent terms are done. So, in 10*x^3 + 5*x – 7, say with x = 2, the first pass only calculates 2^3 and ignores the multiplications and the sums and differences to calculate 2^3 = 8. The second pass looks at 10*8 + 5*2 – 7 and only does the multiplications, so it produces 80 + 10 - 7. The third pass looks at the +’s and –‘s to produce 80 + 10 – 7 = 83.
A10: 3. Parentheses If you need an operation involving more than two adjacent terms, as in Ö4^3 + 6^2, the computer would take the square root of 4 to produce 2^3 + 6^2; it would then cube the 2 and square the 6 to produce 8 + 36; and finally it would add the 8 and the 36 to get 44. If you actually wanted the square root of the entire expression, you would need to use parentheses, as in Ö(4^3 + 6^2) to tell the computer to do all the operations inside the parentheses before taking the square root. Therefore, it would calculate (4^3 + 6^2) = 64 + 36 = 100 and then take the square root of Ö100 = 10.
A12: 4. Built-In Functions Computer programs have built-in functions for most common algebraic functions. In Excel, the square root function is denoted by SQRT(…), so SQRT(100) = 10. Alternatively, you could enter it as 100^.5 or 100^(1/2); notice that parentheses are needed to have the ½ done first. The common trig functions are SIN (…), COS (…), and TAN (…), where the arguments are automatically interpreted as being in radians, not degrees. The logarithm to the base 10 is represented by LOG (…) and the logarithm with the base e, known as the natural logarithm, is LN (…). The corresponding exponential function with base e is EXP (x). If x is the variable, then each of these would be SQRT (x), SIN (x), COS (x), TAN (x), LOG (x) (for log with base 10 ), LN (x) (for log with base e ), and EXP (x).
